fUSD/lending_fUSD_20260127
["ID","MTS","AMOUNT","RATE_DAILY","PERIOD"]
[403763837,1769523594635,-306.16326021,0.00015235,2]
[403763838,1769523595818,-195.0,0.00015235,2]
[403763839,1769523597952,-300.0,0.00015235,2]
[403763840,1769523599983,-280.0356392,0.00015235,2]
[403763841,1769523601455,-180.10092261,0.00015234,2]
[403763842,1769523602971,-119.89907739,0.00015234,2]
[403763843,1769523602994,-67.09620223,0.00015234,2]
[403763844,1769523606698,-360.01231552,0.00015234,2]
[403763845,1769523610996,-157.28703406,0.00015234,2]
[403763846,1769523614282,-179.99043809,0.00015234,2]
[403763847,1769523618018,-204.78769654,0.00015234,2]
[403763848,1769523619566,-165.51566,0.00015234,2]
[403763849,1769523621749,-65.31065356,0.00015234,2]
[403763850,1769523621772,-138.0203163,0.00015235,2]
[403763851,1769523624105,-363.97967176,0.00015235,2]
[403763852,1769523626907,-369.59770996,0.00015235,2]
[403763853,1769523631121,-500.0,0.00015235,2]
[403763854,1769523633767,-280.86566419,0.00015235,2]
[403763855,1769523638361,-266.74753728,0.00015235,2]
[403763856,1769523640557,-334.99224121,0.00015235,2]
[403763857,1769523641994,-209.99820294,0.00015235,2]
[403763858,1769523645787,-184.0014157,0.00015235,2]
[403763859,1769523648485,-272.98719203,0.00015235,2]
[403763860,1769523651242,-165.95799728,0.00015235,2]
[403763861,1769523653310,-202.72970625,0.00015235,2]
[403763862,1769523654787,-280.4968168,0.00015235,2]
[403763863,1769523656113,-269.12598303,0.00015235,2]
[403763864,1769523659207,-317.1570777,0.00015235,2]
[403763865,1769523661956,-187.57386683,0.00015235,2]
[403763866,1769523664311,-186.01311608,0.00015235,2]
[403763867,1769523666967,-438.54764157,0.00015235,2]
[403763868,1769523669343,-171.78693618,0.00015235,2]
[403763869,1769523671928,-167.45273979,0.00015235,2]
[403763870,1769523675810,-179.85757063,0.00015235,2]
[403763871,1769523679198,-231.92147264,0.00015235,2]
[403763872,1769523683260,-324.6142914,0.00015235,2]
[403763873,1769523685827,-188.34057322,0.00015235,2]
[403763874,1769523689836,-280.4968168,0.00015235,2]
[403763875,1769523692253,-186.01311608,0.00015235,2]
[403763876,1769523693763,-394.46489579,0.00015235,2]
[403763877,1769523696276,-155.03186656,0.00015235,2]
[403763878,1769523697849,-273.18389121,0.00015235,2]
[403763879,1769523699429,-372.29216576,0.00015235,2]
[403763880,1769523702606,-157.11231991,0.00015235,2]
[403763881,1769523706808,-185.49208613,0.00015235,2]
[403763882,1769523708978,-220.02657834,0.00015235,2]
[403763883,1769523710786,-226.81610879,0.00015235,2]
[403763884,1769523713141,-264.08,0.00015235,2]
[403763885,1769523713704,5716.92,0.00015039,2]
[403763886,1769523714719,-99.88245269,0.00015235,2]
[403763887,1769523714744,-215.30546146,0.00015235,2]
[403763888,1769523714767,-51.66457572,0.00015239,2]
[403763889,1769523719083,-238.07610676,0.00015239,2]
[403763890,1769523722734,-169.04925401,0.00015238,2]
[403763891,1769523724550,-130.95074599,0.00015238,2]
[403763892,1769523724572,-88.55243721,0.00015239,2]
[403763893,1769523726065,-211.39436537,0.00015235,2]
[403763894,1769523729569,-341.39453701,0.00015235,2]
[403763895,1769523731694,-313.98688392,0.00015235,2]
[403763896,1769523734893,-273.4930365,0.00015235,2]
[403763897,1769523736356,300.9974,0.00015225,2]
[403763898,1769523736851,-303.97243689,0.00015235,2]
[403763899,1769523738849,-343.65033174,0.00015235,2]
[403763900,1769523741213,-161.65817532,0.00015235,2]
[403763901,1769523742785,-352.75634714,0.00015235,2]
[403763902,1769523745821,-484.0,0.00015235,2]
[403763903,1769523747358,-187.65595433,0.00015235,2]
[403763904,1769523752071,-328.08193154,0.00015235,2]
[403763905,1769523754663,-300.0,0.00015235,2]
[403763906,1769523756891,-281.36424726,0.00015235,2]
[403763907,1769523759487,-249.85203652,0.00015235,2]
[403763908,1769523762299,-198.53976258,0.00015235,2]
[403763909,1769523764975,-300.73726597,0.00015235,2]
[403763910,1769523770393,-303.42257303,0.00015235,2]
[403763911,1769523775830,-13.7925472,0.00015235,2]
[403763912,1769523775852,-189.011885,0.00015235,2]
[403763913,1769523775874,-97.1955678,0.00015235,2]
[403763914,1769523777859,-118.10989366,0.00015235,2]
[403763915,1769523777883,-49.34284617,0.00015239,2]
[403763916,1769523782850,-214.32463653,0.00015238,2]
[403763917,1769523784826,-85.67536347,0.00015238,2]
[403763918,1769523784852,-238.00958856,0.00015239,2]
[403763919,1769523787400,-382.27362717,0.00015239,2]
[403763920,1769523789921,-294.0920583,0.00015239,2]
[403763921,1769523791922,-268.19278337,0.00015239,2]
[403763922,1769523794081,1050.88046112,0.00015324,5]
[403763923,1769523808604,-200.493892,0.00015238,2]
[403763924,1769523812181,-67.506108,0.00015238,2]
[403763925,1769523812213,-234.493892,0.00015239,2]
[403763926,1769523814759,-157.29701247,0.00015235,2]
[403763927,1769523818019,-302.0,0.00015235,2]
[403763928,1769523819938,-453.69282598,0.00015235,2]
[403763929,1769523821421,-181.2004307,0.00015235,2]
[403763930,1769523822799,-182.59872594,0.00015235,2]
[403763931,1769523822821,-1.25611001,0.00015239,2]
[403763932,1769523825809,-258.69331905,0.00015239,2]
[403763933,1769523828665,-200.99716894,0.00015239,2]
[403763934,1769523831466,-278.12650783,0.00015239,2]
[403763935,1769523833575,-278.85547752,0.00015239,2]
[403763936,1769523838386,-305.55713342,0.00015239,2]
[403763937,1769523841134,-239.54442315,0.00015239,2]
[403763938,1769523843199,-189.98643206,0.00015239,2]
[403763939,1769523845245,-250.0,0.00015238,2]
[403763940,1769523846752,-50.0,0.00015238,2]
[403763941,1769523846776,-125.25497291,0.00015239,2]
[403763942,1769523849668,-154.04975077,0.00015239,2]
[403763943,1769523851611,-95.95024923,0.00015239,2]
[403763944,1769523851634,-204.04975077,0.00015239,2]
[403763945,1769523853038,-266.12362878,0.00015239,2]
[403763946,1769523855075,-240.62892568,0.00015239,2]
[403763947,1769523858073,-299.30623342,0.00015239,2]
[403763948,1769523861574,-218.34596674,0.00015239,2]
[403763949,1769523863067,-303.57784659,0.00015239,2]
[403763950,1769523865825,-300.0,0.00015239,2]
[403763951,1769523867380,-289.01079653,0.00015239,2]
[403763952,1769523869913,-228.64816658,0.00015239,2]
[403763953,1769523872300,-233.87637122,0.00015239,2]
[403763954,1769523873840,-311.47334292,0.00015239,2]
[403763955,1769523877806,-356.04530438,0.00015239,2]
[403763958,1769523879812,-183.44230964,0.00015239,2]
[403763961,1769523885903,-186.39604984,0.00015235,2]
[403763962,1769523885925,-103.97090287,0.00015239,2]
[403763964,1769523888458,-254.54970362,0.00015239,2]
[403763965,1769523891733,-465.0,0.00015239,2]
[403763966,1769523893304,-295.65706098,0.00015239,2]
[403763967,1769523895702,-161.45986508,0.00015239,2]
[403763968,1769523900388,10000.01,0.00014898,2]
[403763969,1769523900424,10000.01,0.00014898,2]
[403763970,1769523900448,8142.68,0.00014898,2]
[403763971,1769523902522,-210.59927389,0.00015238,2]
[403763972,1769523905569,-89.40072611,0.00015238,2]
[403763973,1769523905596,-141.11975769,0.00015238,2]
[403763974,1769523911856,-302.0,0.00015238,2]
[403763975,1769523919339,-198.47987999,0.00015238,2]
[403763976,1769523924952,-341.79069879,0.00015238,2]
[403763977,1769523934508,-216.60966353,0.00015238,2]
[403763978,1769523934535,-186.97079023,0.00015238,2]
[403763979,1769523937652,-156.65161085,0.00015238,2]
[403763980,1769523941102,-156.37759892,0.00015238,2]
[403763981,1769523941125,-168.37121993,0.00015238,2]
[403763982,1769523943226,-168.25118115,0.00015238,2]
[403763983,1769523945340,-189.22945552,0.00015238,2]
[403763984,1769523945366,-56.15054448,0.00015238,2]
[403763985,1769523947262,-364.6152272,0.00015238,2]
[403763986,1769523949140,-79.23422832,0.00015238,2]
[403763987,1769523949162,-274.71471175,0.00015238,2]
[403763988,1769523949280,200.0,0.00015007,2]
[403763989,1769523951238,-225.28528825,0.00015238,2]
[403763990,1769523951264,-206.15054448,0.00015238,2]
[403763992,1769523958442,-293.95469562,0.00015239,2]
[403763993,1769523960381,-151.55769036,0.00015239,2]
[403763994,1769523964804,-271.06741652,0.00015239,2]
[403763995,1769523967830,-189.53517489,0.00015239,2]
[403763996,1769523972652,-191.61455368,0.00015239,2]
[403763997,1769523976747,-311.51740856,0.00015239,2]
[403763998,1769523983540,-187.42984328,0.00015239,2]
[403763999,1769523985021,-177.0739499,0.00015239,2]
[403764000,1769523990716,-464.21163511,0.00015239,2]
[403764001,1769523998214,-339.59623487,0.00015239,2]
[403764002,1769523999950,-311.44855008,0.00015239,2]
[403764003,1769524002494,-610.98219507,0.00015239,2]
[403764004,1769524005213,-194.48163255,0.00015239,2]
[403764007,1769524020079,245.38,0.000152,2]
[403764008,1769524042417,500.0,0.00014627,2]
[403764009,1769524052391,911.95,0.00014627,2]
[403764010,1769524052415,52.78,0.00014627,2]
[403764011,1769524072269,150.0,0.00014608,2]
[403764012,1769524103174,1000.0,0.00014585,2]
[403764013,1769524109362,157.38,0.00014538,2]
[403764021,1769524231639,-572.0,0.00015234,2]
[403764023,1769524231649,-1200.0,0.00015234,2]
[403764024,1769524231659,-150.0,0.00015234,2]
[403764025,1769524231669,-195.0,0.00015234,2]
[403764026,1769524231682,-250.0,0.00015235,2]
[403764027,1769524231692,-6443.57129373,0.00015235,2]
[403764028,1769524231705,-754.66632813,0.00015235,2]
[403764029,1769524231718,-932.31905122,0.00015235,2]
[403764030,1769524231734,-400.99999999,0.00015235,2]
[403764031,1769524231746,-3025.76218427,0.00015235,2]
[403764032,1769524231763,-4511.54981381,0.00015235,2]
[403764033,1769524231774,-1190.3727411,0.00015235,2]
[403764034,1769524231784,-4598.26691805,0.00015235,2]
[403764035,1769524231794,-194.08975461,0.00015235,2]
[403764036,1769524231804,-195.0,0.00015236,2]
[403764037,1769524231815,-300.0,0.00015237,2]
[403764038,1769524231825,-600.0,0.00015237,2]
[403764039,1769524232636,-8073.17495756,0.00015239,2]
[403764040,1769524232662,-254.07533624,0.00015242,2]
[403764041,1769524232672,-600.0,0.00015242,2]
[403764042,1769524232684,-600.0,0.00015242,2]
[403764043,1769524232693,-346.23098637,0.00015242,2]
[403764044,1769524232703,-200.0,0.00015263,2]
[403764045,1769524232712,-557.89,0.00015287,2]
[403764046,1769524232725,-975.329,0.00015299,2]
[403764047,1769524232734,-176.627,0.00015299,2]
[403764048,1769524232744,-262.55520896,0.000153,2]
[403764049,1769524232758,-500.0,0.00015315,2]
[403764050,1769524232768,-500.0,0.00015315,2]
[403764051,1769524232778,-500.0,0.00015315,2]
[403764052,1769524232788,-500.0,0.00015315,2]
[403764053,1769524232798,-500.0,0.00015315,2]
[403764054,1769524232807,-500.0,0.00015315,2]
[403764055,1769524232817,-500.0,0.00015315,2]
[403764056,1769524232827,-500.0,0.00015315,2]
[403764057,1769524232837,-500.0,0.00015315,2]
[403764058,1769524232846,-500.0,0.00015315,2]
[403764059,1769524232855,-525.4541604,0.00015315,2]
[403764060,1769524232864,-151.0,0.00015315,2]
[403764061,1769524232873,-151.0,0.00015315,2]
[403764062,1769524232883,-151.0,0.00015315,2]
[403764063,1769524232892,-151.0,0.00015315,2]
[403764064,1769524232901,-151.0,0.00015315,2]
[403764065,1769524232910,-151.0,0.00015315,2]
[403764066,1769524232919,-151.0,0.00015315,2]
[403764067,1769524232928,-151.0,0.00015315,2]
[403764068,1769524232937,-151.0,0.00015315,2]
[403764069,1769524232946,-151.0,0.00015315,2]
[403764070,1769524232955,-151.0,0.00015315,2]
[403764071,1769524232964,-151.0,0.00015315,2]
[403764072,1769524232976,-151.0,0.00015315,2]
[403764073,1769524232985,-503.74909604,0.00015315,2]
[403764074,1769524232995,-151.0,0.00015322,2]
[403764075,1769524233004,-925.51190611,0.00015323,2]
[403764076,1769524233014,-164.71925122,0.00015324,2]
[403764077,1769524233023,-500.0,0.00015324,2]
[403764078,1769524233033,-221.93804695,0.00015324,2]
[403764079,1769524233043,-425.08549957,0.00015324,2]
[403764080,1769524233052,-359.88427274,0.00015324,2]
[403764081,1769524233061,-776.08,0.00015324,2]
[403764082,1769524233070,-500.0,0.00015324,2]
[403764083,1769524233079,-500.0,0.00015324,2]
[403764084,1769524233088,-500.0,0.00015324,2]
[403764085,1769524233098,-500.0,0.00015324,2]
[403764086,1769524233107,-500.0,0.00015324,2]
[403764087,1769524233116,-433.42701788,0.00015324,2]
[403764088,1769524233125,-328803.63947803,0.00015325,2]
[403764090,1769524236776,-500.0,0.00015236,2]
[403764092,1769524236786,-500.0,0.00015236,2]
[403764093,1769524236796,-500.0,0.00015236,2]
[403764096,1769524236805,-500.0,0.00015236,2]
[403764098,1769524236815,-500.0,0.00015236,2]
[403764099,1769524236824,-500.0,0.00015236,2]
[403764102,1769524236833,-500.0,0.00015236,2]
[403764103,1769524236842,-500.0,0.00015236,2]
[403764105,1769524236852,-500.0,0.00015236,2]
[403764108,1769524236862,-500.0,0.00015236,2]
[403764110,1769524236871,-500.0,0.00015236,2]
[403764112,1769524236880,-500.0,0.00015236,2]
[403764114,1769524236889,-500.0,0.00015236,2]
[403764115,1769524236898,-500.0,0.00015236,2]
[403764117,1769524236907,-500.0,0.00015236,2]
[403764119,1769524236916,-500.0,0.00015236,2]
[403764122,1769524236926,-500.0,0.00015236,2]
[403764123,1769524236935,-164.77336194,0.00015236,2]
[403764125,1769524236944,-500.0,0.00015236,2]
[403764127,1769524236953,-500.0,0.00015236,2]
[403764130,1769524236963,-500.0,0.00015236,2]
[403764132,1769524236975,-500.0,0.00015236,2]
[403764134,1769524236984,-500.0,0.00015236,2]
[403764136,1769524236992,-500.0,0.00015236,2]
[403764138,1769524237001,-29002.69819604,0.00015325,2]
[403764140,1769524237013,-405.05,0.00015325,2]
[403764142,1769524237024,-1727.40362359,0.00015325,2]
[403764147,1769524237736,-615.21547425,0.00015325,2]
[403764148,1769524237908,-11180.66287575,0.00015325,2]
[403764149,1769524237919,-24003.60220127,0.00015325,2]
[403764317,1769524239765,-458.87313864,0.00015325,2]
[403764325,1769524239829,-6426.99855979,0.00015325,2]
[403764333,1769524239889,-133436.2885527,0.00015325,2]
[403764443,1769524242217,-1.7e-07,0.00015325,2]
[403764444,1769524242230,-558.10661634,0.00015325,2]
[403764451,1769524242813,-1001.403706,0.00015325,2]
[403764452,1769524242873,-1058.54077443,0.00015325,2]
[403764453,1769524242885,-5911.41443998,0.00015325,2]
[403764479,1769524245736,-8250.79561771,0.00015325,2]
[403764480,1769524245912,-1890.52788908,0.00015325,2]
[403764481,1769524245925,-2209.08003864,0.00015325,2]
[403764485,1769524247283,182.87,0.00015343,3]
[403764486,1769524247706,8639.85,0.00015139,2]
[403764487,1769524247741,10000.01,0.00015139,2]
[403764488,1769524247771,10000.01,0.00015139,2]
[403764489,1769524247799,10000.01,0.00015139,2]
[403764490,1769524247828,10000.01,0.00015139,2]
[403764491,1769524247856,10000.01,0.00015139,2]
[403764492,1769524247886,10000.01,0.00015139,2]
[403764493,1769524247913,10000.01,0.00015139,2]
[403764494,1769524247939,10000.01,0.00015139,2]
[403764495,1769524247965,10000.01,0.00015139,2]
[403764496,1769524248465,-1006.0654149,0.00015139,2]
[403764497,1769524251167,-201.62648842,0.00015139,2]
[403764498,1769524253215,-231.22923675,0.00015139,2]
[403764499,1769524254610,-173.45650255,0.00015139,2]
[403764500,1769524256641,-257.38341626,0.00015139,2]
[403764501,1769524258761,-416.96558509,0.00015139,2]
[403764502,1769524260719,600.0,0.000149,5]
[403764503,1769524260753,302.27,0.00015254,3]
[403764504,1769524261119,-267.93863731,0.00015139,2]
[403764505,1769524261412,300.0,0.00015138,2]
[403764506,1769524262857,1300.0,0.000159,5]
[403764507,1769524263768,-231.58169979,0.00015139,2]
[403764508,1769524267371,-265.86743962,0.00015139,2]
[403764509,1769524269512,-242.34040579,0.00015139,2]
[403764510,1769524270979,-204.35792503,0.00015139,2]
[403764511,1769524275153,-183.92092874,0.00015139,2]
[403764512,1769524277203,-165.22858268,0.00015139,2]
[403764513,1769524278709,-167.31867766,0.00015139,2]
[403764514,1769524278906,151.0,0.00015136,2]
[403764515,1769524280729,-323.89142777,0.00015139,2]
[403764516,1769524281807,-171.92393582,0.00015139,2]
[403764517,1769524283788,-421.2389542,0.00015139,2]
[403764518,1769524286347,-223.16741288,0.00015139,2]
[403764519,1769524288540,-241.31363509,0.00015139,2]
[403764520,1769524292731,1074.81,0.00014836,2]
[403764521,1769524292774,176.62852472,0.00014836,2]
[403764522,1769524297895,-168.05363435,0.00015139,2]
[403764523,1769524302255,-361.02572261,0.00015139,2]
[403764524,1769524304570,-271.15589761,0.00015139,2]
[403764525,1769524306294,-170.25575688,0.00015139,2]
[403764526,1769524307631,194.08975461,0.00015132,2]
[403764527,1769524309213,-267.66914738,0.00015139,2]
[403764528,1769524310762,-260.4172349,0.00015139,2]
[403764529,1769524311602,-9130.81760842,0.00015139,2]
[403764530,1769524311759,-10000.01,0.00015139,2]
[403764531,1769524311880,-10000.01,0.00015139,2]
[403764532,1769524312212,-10000.01,0.00015139,2]
[403764533,1769524312233,-10000.01,0.00015139,2]
[403764534,1769524314569,-233.42388047,0.00015139,2]
[403764535,1769524315771,-10000.01,0.00015139,2]
[403764536,1769524315907,-10000.01,0.00015139,2]
[403764537,1769524316068,-10000.01,0.00015139,2]
[403764538,1769524316187,-10000.01,0.00015139,2]
[403764539,1769524316340,-10000.01,0.00015139,2]
[403764540,1769524316500,-10000.01,0.00015139,2]
[403764541,1769524316645,-10000.01,0.00015139,2]
[403764542,1769524316791,-10000.01,0.00015139,2]
[403764543,1769524316924,-10000.01,0.00015139,2]
[403764544,1769524317050,-10000.01,0.00015139,2]
[403764545,1769524317163,-10000.01,0.00015139,2]
[403764546,1769524317270,-10000.01,0.00015139,2]
[403764547,1769524317395,-10000.01,0.00015139,2]
[403764548,1769524317577,-10000.01,0.00015139,2]
[403764549,1769524317705,-10000.01,0.00015139,2]
[403764550,1769524321815,-10000.01,0.00015139,2]
[403764551,1769524321940,-300.0,0.00015138,2]
[403764552,1769524321974,-9400.01,0.00015139,2]
[403764553,1769524322094,-10000.01,0.00015139,2]
[403764554,1769524322483,-10000.01,0.00015139,2]
[403764555,1769524322498,-10000.01,0.00015139,2]
[403764556,1769524322524,-10000.01,0.00015139,2]
[403764557,1769524322668,-10000.01,0.00015139,2]
[403764558,1769524322806,-10000.01,0.00015139,2]
[403764559,1769524322936,-10000.01,0.00015139,2]
[403764560,1769524323066,-10000.01,0.00015139,2]
[403764561,1769524323572,-10000.01,0.00015139,2]
[403764562,1769524323586,-10000.01,0.00015139,2]
[403764563,1769524323600,-10000.01,0.00015139,2]
[403764564,1769524323696,-10000.01,0.00015139,2]
[403764565,1769524323875,-10000.01,0.00015139,2]
[403764566,1769524347940,-167.45274,0.00015139,2]
[403764567,1769524351229,-353.50363538,0.00015139,2]
[403764568,1769524353616,-300.0,0.00015139,2]
[403764569,1769524357048,-190.59259671,0.00015139,2]
[403764570,1769524358689,-210.7921822,0.00015139,2]
[403764571,1769524360738,-167.39509096,0.00015139,2]
[403764572,1769524361505,1041.57614841,0.00015132,2]
[403764573,1769524363341,-199.60290876,0.00015139,2]
[403764574,1769524367750,-242.01231233,0.00015139,2]
[403764575,1769524368261,212.71327346,0.00015138,2]
[403764576,1769524368299,256.35698976,0.00015138,2]
[403764577,1769524368333,500.0,0.00015138,2]
[403764578,1769524368383,608.73618004,0.00015138,2]
[403764579,1769524370383,-302.0,0.00015139,2]
[403764580,1769524375304,500.0,0.00015138,2]
[403764581,1769524375374,500.0,0.00015138,2]
[403764582,1769524375426,500.0,0.00015138,2]
[403764583,1769524375484,566.4773362,0.00015138,2]
[403764584,1769524382576,300.0,0.00015138,2]
[403764586,1769524498557,5014.15007213,0.00015085,2]
[403764587,1769524498581,551.39395016,0.00015085,2]
[403764588,1769524501222,300.0,0.00015138,2]
[403764589,1769524501262,300.0,0.00015138,2]
[403764590,1769524501318,1200.0,0.00015138,2]
[403764591,1769524530623,7648.61604984,0.00015085,2]
[403764592,1769524530648,7316.53298231,0.00015085,2]
[403764593,1769524570998,1000.0,0.00015039,2]
[403764594,1769524585919,528.478462,0.00015063,2]
[403764595,1769524621693,300.0,0.00015138,2]
[403764596,1769524629520,204.7422275,0.00015139,2]
[403764597,1769524639853,210.42094214,0.00015139,2]
[403764598,1769524644180,170.19,0.00012019,2]
[403764599,1769524644513,170.19,0.00014022,2]
[403764600,1769524647478,99.45538605,0.00015139,2]
[403764601,1769524655292,911.37912992,0.0001505,2]
[403764602,1769524667819,483.89731188,0.0001505,2]
[403764603,1769524669480,500.0,0.00015,2]
[403764604,1769524669747,8104.7335582,0.00015039,2]
[403764605,1769524669773,10000.01,0.00015039,2]
[403764606,1769524669796,10000.01,0.00015039,2]
[403764607,1769524669818,5131.6583418,0.00015039,2]
[403764608,1769524700532,1000.0,0.00015039,2]
[403764610,1769524784871,-296.4208212,0.00015138,2]
[403764611,1769524786930,-3.5791788,0.00015138,2]
[403764612,1769524786957,-191.4208212,0.00015138,2]
[403764613,1769524789063,-159.57917897,0.00015138,2]
[403764614,1769524809731,1524.65,0.00014967,2]
[403764616,1769524850967,1000.0,0.00015039,2]
[403764617,1769524884839,5623.38254171,0.00015041,2]
[403764618,1769524890993,-288.79765623,0.00015138,2]
[403764619,1769524892713,1232.079,0.00014836,2]
[403764620,1769524892780,210.339,0.00014836,2]
[403764621,1769524936914,166.66,0.00014288,2]
[403764622,1769524937167,166.66,0.00014589,2]
[403764623,1769524937399,76.23945829,0.0001489,2]
[403764624,1769524937422,90.42054171,0.0001489,2]
[403764625,1769524937772,797.45673868,0.00015041,2]
[403764626,1769524952982,7758.2,0.00014936,2]
[403764627,1769524964535,288.7976,0.00015038,2]
[403764628,1769524971169,159.57917897,0.00015038,2]
[403764629,1769525001297,905.55594064,0.00015039,2]
[403764630,1769525001321,94.44405936,0.00015039,2]
[403764631,1769525036410,500.0,0.00021,30]
[403764632,1769525041679,9905.56594064,0.00015041,2]
[403764633,1769525041703,4812.22567413,0.00015041,2]
[403764636,1769525169415,1500.0,0.00014873,2]
[403764637,1769525219328,770.95701668,0.00015091,2]
[403764645,1769525247313,500.0,0.000159,5]
[403764646,1769525271239,2916.82730919,0.00015091,2]
[403764647,1769525271263,2144.21697834,0.00015091,2]
[403764648,1769525283215,512.69,0.00014777,2]
[403764649,1769525291043,7343.10302166,0.00015039,2]
[403764650,1769525291072,10000.01,0.00015039,2]
[403764651,1769525291098,10000.01,0.00015039,2]
[403764652,1769525291124,10000.01,0.00015039,2]
[403764653,1769525291151,10000.01,0.00015039,2]
[403764654,1769525291179,10000.01,0.00015039,2]
[403764655,1769525291208,10000.01,0.00015039,2]
[403764656,1769525291234,10000.01,0.00015039,2]
[403764657,1769525291262,10000.01,0.00015039,2]
[403764658,1769525291288,10000.01,0.00015039,2]
[403764659,1769525292441,-205.99209242,0.00015039,2]
[403764660,1769525295034,-264.04625303,0.00015039,2]
[403764661,1769525304052,-293.63257727,0.00015039,2]
[403764662,1769525311485,-196.44286658,0.00015039,2]
[403764663,1769525318580,-215.40245186,0.00015039,2]
[403764664,1769525325241,-216.23909349,0.00015039,2]
[403764665,1769525327639,-264.83414759,0.00015039,2]
[403764666,1769525334428,-301.39262182,0.00015039,2]
[403764667,1769525336491,-249.65571652,0.00015039,2]
[403764668,1769525337466,10000.0,0.00015039,2]
[403764670,1769525341460,-209.41185094,0.00015039,2]
[403764671,1769525341776,0.01,0.00015038,2]
[403764672,1769525341800,299.99,0.00015038,2]
[403764673,1769525342972,-211.592463,0.00015039,2]
[403764674,1769525345452,-244.33214218,0.00015039,2]
[403764676,1769525349631,-3568.3616582,0.00015039,2]
[403764677,1769525349705,-10000.01,0.00015039,2]
[403764678,1769525349891,-10000.01,0.00015039,2]
[403764679,1769525350045,-10000.01,0.00015039,2]
[403764680,1769525350239,-10000.01,0.00015039,2]
[403764681,1769525350376,-10000.01,0.00015039,2]
[403764682,1769525351157,-235.34687346,0.00015039,2]
[403764683,1769525352082,-10000.01,0.00015039,2]
[403764684,1769525352184,-10000.01,0.00015039,2]
[403764685,1769525352329,-10000.01,0.00015039,2]
[403764686,1769525352542,-10000.01,0.00015039,2]
[403764687,1769525352645,-10000.01,0.00015039,2]
[403764688,1769525353803,-350.34428348,0.00015039,2]
[403764689,1769525357361,-294.92934298,0.00015039,2]
[403764690,1769525365509,-179.954532,0.00015039,2]
[403764691,1769525366935,-300.57827864,0.00015039,2]
[403764692,1769525368486,1099.34086986,0.00015038,5]
[403764693,1769525368540,1099.34086986,0.00015038,5]
[403764694,1769525375828,-300.0,0.00015039,2]
[403764695,1769525381744,-366.8223156,0.00015039,2]
[403764701,1769525389918,3363.059982,0.00014963,2]
[403764702,1769525391166,-184.41117946,0.00015039,2]
[403764703,1769525397633,-332.49536576,0.00015039,2]
[403764704,1769525401324,-222.53705238,0.00015039,2]
[403764705,1769525401388,1200.0,0.00015038,2]
[403764706,1769525401418,300.0,0.00015038,2]
[403764707,1769525401897,283.0,0.00015038,2]
[403764708,1769525405437,-456.1477153,0.00015039,2]
[403764709,1769525406877,-226.62368792,0.00015039,2]
[403764710,1769525408496,2871.1,0.00015029,2]
[403764711,1769525408969,-223.04153644,0.00015039,2]
[403764712,1769525409027,1982.850018,0.00015029,2]
[403764713,1769525409056,888.249982,0.00015029,2]
[403764714,1769525413244,-461.77467345,0.00015039,2]
[403764715,1769525415356,-275.48990071,0.00015039,2]
[403764716,1769525416054,212.0,0.00015038,2]
[403764719,1769525422293,-276.67903427,0.00015039,2]
[403764720,1769525423912,-300.0,0.00015039,2]
[403764721,1769525430303,-359.22477413,0.00015039,2]
[403764722,1769525430551,179.44989283,0.00015038,2]
[403764726,1769525431805,-41209.56286426,0.00015039,2]
[403764727,1769525431881,-10194.470071,0.00015039,2]
[403764728,1769525431893,-1027.11678612,0.00015039,2]
[403764729,1769525431940,-3753.07156661,0.00015039,2]
[403764730,1769525431951,-7477.9414305,0.00015039,2]
[403764731,1769525431963,-1487.95536,0.00015039,2]